fUSD/lending_fUSD_20260118
["ID","MTS","AMOUNT","RATE_DAILY","PERIOD"]
[402613216,1768723871946,-500.0,0.00016712,2]
[402613217,1768723871956,-500.0,0.00016712,2]
[402613218,1768723871966,-500.0,0.00016712,2]
[402613219,1768723871976,-500.0,0.00016712,2]
[402613220,1768723871985,-500.0,0.00016712,2]
[402613221,1768723871994,-729.23,0.00016712,2]
[402613222,1768723872004,-500.0,0.00016712,2]
[402613223,1768723872013,-500.0,0.00016712,2]
[402613224,1768723872022,-500.0,0.00016712,2]
[402613225,1768723872030,-500.0,0.00016712,2]
[402613226,1768723872039,-500.0,0.00016712,2]
[402613227,1768723872048,-500.0,0.00016712,2]
[402613228,1768723872057,-500.0,0.00016712,2]
[402613229,1768723872067,-500.0,0.00016712,2]
[402613230,1768723872077,-500.0,0.00016712,2]
[402613231,1768723872087,-540.4,0.00016712,2]
[402613232,1768723872097,-500.0,0.00016712,2]
[402613233,1768723872106,-500.0,0.00016712,2]
[402613234,1768723872116,-500.0,0.00016712,2]
[402613235,1768723872126,-500.0,0.00016712,2]
[402613236,1768723872136,-500.0,0.00016712,2]
[402613237,1768723872145,-500.0,0.00016712,2]
[402613238,1768723872156,-500.0,0.00016712,2]
[402613239,1768723872165,-500.0,0.00016712,2]
[402613240,1768723872176,-500.0,0.00016712,2]
[402613241,1768723872186,-500.0,0.00016712,2]
[402613242,1768723872196,-500.0,0.00016712,2]
[402613243,1768723872206,-500.0,0.00016712,2]
[402613244,1768723872217,-603.78,0.00016712,2]
[402613245,1768723872227,-500.0,0.00016712,2]
[402613246,1768723872237,-500.0,0.00016712,2]
[402613247,1768723872247,-500.0,0.00016712,2]
[402613248,1768723872257,-500.0,0.00016712,2]
[402613249,1768723872267,-500.0,0.00016712,2]
[402613251,1768723872276,-500.0,0.00016712,2]
[402613252,1768723872285,-500.0,0.00016712,2]
[402613253,1768723872295,-500.0,0.00016712,2]
[402613254,1768723872306,-500.0,0.00016712,2]
[402613255,1768723872316,-500.0,0.00016712,2]
[402613256,1768723872326,-500.0,0.00016712,2]
[402613257,1768723872336,-500.0,0.00016712,2]
[402613258,1768723872346,-500.0,0.00016712,2]
[402613259,1768723872356,-500.0,0.00016712,2]
[402613260,1768723872366,-500.0,0.00016712,2]
[402613261,1768723872376,-500.0,0.00016712,2]
[402613262,1768723872385,-500.0,0.00016712,2]
[402613263,1768723872396,-500.0,0.00016712,2]
[402613264,1768723872405,-915.77,0.00016712,2]
[402613265,1768723872416,-536.34,0.00016712,2]
[402613266,1768723872426,-500.0,0.00016712,2]
[402613267,1768723872437,-500.0,0.00016712,2]
[402613268,1768723872447,-500.0,0.00016712,2]
[402613269,1768723872457,-503.4,0.00016712,2]
[402613270,1768723872467,-500.0,0.00016712,2]
[402613271,1768723872477,-614.04,0.00016712,2]
[402613272,1768723872487,-500.0,0.00016712,2]
[402613273,1768723872497,-500.0,0.00016712,2]
[402613274,1768723872506,-538.83,0.00016712,2]
[402613276,1768723872516,-500.0,0.00016712,2]
[402613277,1768723872527,-500.0,0.00016712,2]
[402613278,1768723872537,-662.31,0.00016712,2]
[402613279,1768723872547,-514.01,0.00016712,2]
[402613280,1768723872557,-500.0,0.00016712,2]
[402613281,1768723872567,-5502.85,0.00016712,2]
[402613282,1768723872576,-701.8,0.00016712,2]
[402613283,1768723872585,-500.0,0.00016712,2]
[402613284,1768723872594,-500.0,0.00016712,2]
[402613285,1768723872603,-500.0,0.00016712,2]
[402613286,1768723872613,-532.17207364,0.00016712,2]
[402613287,1768723872622,-500.0,0.00016712,2]
[402613288,1768723872631,-500.0,0.00016712,2]
[402613289,1768723872641,-836.76,0.00016712,2]
[402613290,1768723872652,-500.0,0.00016712,2]
[402613291,1768723872662,-500.0,0.00016712,2]
[402613292,1768723872671,-500.0,0.00016712,2]
[402613293,1768723872681,-500.0,0.00016712,2]
[402613294,1768723872691,-500.0,0.00016712,2]
[402613295,1768723872701,-1880.15,0.00016712,2]
[402613296,1768723872710,-500.0,0.00016712,2]
[402613297,1768723872720,-500.0,0.00016712,2]
[402613298,1768723872729,-565.82,0.00016712,2]
[402613300,1768723872739,-500.0,0.00016712,2]
[402613301,1768723872748,-500.0,0.00016712,2]
[402613302,1768723872758,-500.0,0.00016712,2]
[402613303,1768723872768,-500.0,0.00016712,2]
[402613304,1768723872777,-500.0,0.00016712,2]
[402613305,1768723872787,-500.0,0.00016712,2]
[402613306,1768723872797,-500.0,0.00016712,2]
[402613307,1768723872807,-500.0,0.00016712,2]
[402613308,1768723872817,-500.0,0.00016712,2]
[402613309,1768723872827,-500.0,0.00016712,2]
[402613310,1768723872837,-500.0,0.00016712,2]
[402613311,1768723872847,-500.0,0.00016712,2]
[402613312,1768723872861,-569.76,0.00016712,2]
[402613313,1768723872870,-500.0,0.00016712,2]
[402613314,1768723872880,-500.0,0.00016712,2]
[402613315,1768723872891,-500.0,0.00016712,2]
[402613316,1768723872903,-500.0,0.00016712,2]
[402613317,1768723872913,-500.0,0.00016712,2]
[402613318,1768723872924,-500.0,0.00016712,2]
[402613320,1768723872937,-500.0,0.00016712,2]
[402613321,1768723872948,-500.0,0.00016712,2]
[402613322,1768723872959,-500.0,0.00016712,2]
[402613323,1768723872969,-500.0,0.00016712,2]
[402613324,1768723872979,-500.0,0.00016712,2]
[402613325,1768723872989,-500.0,0.00016712,2]
[402613326,1768723872999,-500.0,0.00016712,2]
[402613327,1768723873009,-500.0,0.00016712,2]
[402613329,1768723873019,-500.0,0.00016712,2]
[402613330,1768723873029,-500.0,0.00016712,2]
[402613331,1768723873039,-500.0,0.00016712,2]
[402613332,1768723873048,-500.0,0.00016712,2]
[402613333,1768723873058,-500.0,0.00016712,2]
[402613334,1768723873070,-500.0,0.00016712,2]
[402613335,1768723873081,-500.0,0.00016712,2]
[402613336,1768723873092,-500.0,0.00016712,2]
[402613337,1768723873102,-500.0,0.00016712,2]
[402613338,1768723873113,-500.0,0.00016712,2]
[402613339,1768723873123,-500.0,0.00016712,2]
[402613340,1768723873133,-500.0,0.00016712,2]
[402613341,1768723873144,-500.0,0.00016712,2]
[402613342,1768723873155,-500.0,0.00016712,2]
[402613343,1768723873164,-500.0,0.00016712,2]
[402613344,1768723873174,-500.0,0.00016712,2]
[402613345,1768723873184,-500.0,0.00016712,2]
[402613346,1768723873195,-500.0,0.00016712,2]
[402613347,1768723873204,-500.0,0.00016712,2]
[402613349,1768723873215,-500.0,0.00016712,2]
[402613350,1768723873225,-500.0,0.00016712,2]
[402613351,1768723873235,-500.0,0.00016712,2]
[402613352,1768723873244,-500.0,0.00016712,2]
[402613353,1768723873254,-500.0,0.00016712,2]
[402613354,1768723873265,-500.0,0.00016712,2]
[402613355,1768723873275,-500.0,0.00016712,2]
[402613356,1768723873286,-500.0,0.00016712,2]
[402613357,1768723873296,-500.0,0.00016712,2]
[402613358,1768723873306,-500.0,0.00016712,2]
[402613359,1768723873317,-500.0,0.00016712,2]
[402613360,1768723873327,-500.0,0.00016712,2]
[402613361,1768723873337,-473.98108382,0.00016712,2]
[402613362,1768723873347,-553.56682916,0.00016712,2]
[402613363,1768723873358,-500.0,0.00016712,2]
[402613364,1768723873369,-500.0,0.00016712,2]
[402613365,1768723873379,-500.0,0.00016712,2]
[402613366,1768723873389,-500.0,0.00016712,2]
[402613367,1768723873400,-500.0,0.00016712,2]
[402613368,1768723873411,-500.0,0.00016712,2]
[402613369,1768723873421,-649.39,0.00016712,2]
[402613370,1768723873432,-500.0,0.00016712,2]
[402613371,1768723873442,-500.0,0.00016712,2]
[402613373,1768723873452,-572.46,0.00016712,2]
[402613374,1768723873462,-216.59317109,0.00016712,2]
[402613375,1768723873472,-500.0,0.00016712,2]
[402613376,1768723873482,-500.0,0.00016712,2]
[402613377,1768723873492,-500.0,0.00016712,2]
[402613378,1768723873502,-559.38,0.00016712,2]
[402613379,1768723873512,-500.0,0.00016712,2]
[402613380,1768723873521,-626.77,0.00016712,2]
[402613381,1768723873532,-500.0,0.00016712,2]
[402613382,1768723873541,-531.17,0.00016712,2]
[402613383,1768723873551,-500.0,0.00016712,2]
[402613384,1768723873561,-500.0,0.00016712,2]
[402613385,1768723873571,-500.0,0.00016712,2]
[402613386,1768723873582,-4144.35,0.00016712,2]
[402613387,1768723873593,-500.0,0.00016712,2]
[402613388,1768723873604,-500.0,0.00016712,2]
[402613389,1768723873614,-500.0,0.00016712,2]
[402613390,1768723873624,-500.0,0.00016712,2]
[402613391,1768723873635,-484.07136185,0.00016712,2]
[402613392,1768723873644,-500.0,0.00016712,2]
[402613393,1768723873654,-500.0,0.00016712,2]
[402613394,1768723873666,-500.0,0.00016712,2]
[402613395,1768723873676,-500.0,0.00016712,2]
[402613396,1768723873686,-500.0,0.00016712,2]
[402613398,1768723873695,-500.0,0.00016712,2]
[402613399,1768723873706,-500.0,0.00016712,2]
[402613401,1768723873716,-500.0,0.00016712,2]
[402613402,1768723874010,-500.0,0.00016712,2]
[402613403,1768723874020,-500.0,0.00016712,2]
[402613404,1768723874030,-500.0,0.00016712,2]
[402613405,1768723874040,-500.0,0.00016712,2]
[402613406,1768723874049,-500.0,0.00016712,2]
[402613407,1768723874058,-500.0,0.00016712,2]
[402613408,1768723874067,-500.0,0.00016712,2]
[402613409,1768723874077,-667.79,0.00016712,2]
[402613410,1768723874087,-500.0,0.00016712,2]
[402613411,1768723874097,-500.0,0.00016712,2]
[402613412,1768723874107,-500.0,0.00016712,2]
[402613413,1768723874116,-500.0,0.00016712,2]
[402613414,1768723874125,-500.0,0.00016712,2]
[402613415,1768723874135,-500.0,0.00016712,2]
[402613416,1768723874145,-500.0,0.00016712,2]
[402613417,1768723874155,-500.0,0.00016712,2]
[402613418,1768723874164,-600.88,0.00016712,2]
[402613420,1768723874174,-500.0,0.00016712,2]
[402613421,1768723874183,-500.0,0.00016712,2]
[402613422,1768723874193,-500.0,0.00016712,2]
[402613423,1768723874202,-500.0,0.00016712,2]
[402613424,1768723874212,-500.0,0.00016712,2]
[402613425,1768723874221,-500.0,0.00016712,2]
[402613426,1768723874230,-500.0,0.00016712,2]
[402613427,1768723874240,-500.0,0.00016712,2]
[402613428,1768723874250,-680.8,0.00016712,2]
[402613429,1768723874259,-500.0,0.00016712,2]
[402613430,1768723874268,-500.0,0.00016712,2]
[402613431,1768723874278,-500.0,0.00016712,2]
[402613432,1768723874288,-500.0,0.00016712,2]
[402613433,1768723874298,-500.0,0.00016712,2]
[402613434,1768723874308,-500.0,0.00016712,2]
[402613435,1768723874318,-500.0,0.00016712,2]
[402613436,1768723874328,-500.0,0.00016712,2]
[402613437,1768723874338,-500.0,0.00016712,2]
[402613438,1768723874348,-500.0,0.00016712,2]
[402613439,1768723874358,-500.0,0.00016712,2]
[402613440,1768723874368,-500.0,0.00016712,2]
[402613441,1768723874378,-500.0,0.00016712,2]
[402613442,1768723874387,-500.0,0.00016712,2]
[402613443,1768723874397,-500.0,0.00016712,2]
[402613444,1768723874407,-500.0,0.00016712,2]
[402613445,1768723874416,-500.0,0.00016712,2]
[402613446,1768723874427,-500.0,0.00016712,2]
[402613447,1768723874436,-500.0,0.00016712,2]
[402613448,1768723874447,-500.0,0.00016712,2]
[402613449,1768723874457,-500.0,0.00016712,2]
[402613450,1768723874467,-500.0,0.00016712,2]
[402613451,1768723874477,-500.0,0.00016712,2]
[402613452,1768723874487,-500.0,0.00016712,2]
[402613453,1768723874497,-500.0,0.00016712,2]
[402613454,1768723874506,-678.92,0.00016712,2]
[402613455,1768723874516,-600.0,0.00016712,2]
[402613456,1768723874525,-1000.0,0.00016712,2]
[402613457,1768723874536,-150.0,0.00016717,2]
[402613458,1768723874546,-150.0,0.00016747,2]
[402613459,1768723874557,-150.0,0.00016747,2]
[402613460,1768723874567,-200.0,0.00016748,2]
[402613461,1768723874577,-5888.0,0.00016749,2]
[402613462,1768723874587,-200.0,0.00016752,2]
[402613463,1768723874596,-1500.0,0.00016768,2]
[402613464,1768723874605,-1500.0,0.00016768,2]
[402613465,1768723874615,-1382.76820555,0.00016768,2]
[402613466,1768723874624,-8739.592,0.00016769,2]
[402613467,1768723874633,-150.0,0.0001677,2]
[402613468,1768723874643,-150.0,0.0001677,2]
[402613469,1768723874652,-525.58193812,0.00016773,2]
[402613470,1768723874662,-500.62039903,0.00016773,2]
[402613471,1768723874671,-162.825338,0.00016773,2]
[402613472,1768723874681,-1680.0,0.00016784,2]
[402613473,1768723874691,-150.0,0.00016789,2]
[402613474,1768723874701,-150.0,0.000168,2]
[402613475,1768723874711,-151.0,0.000168,2]
[402613476,1768723874720,-178.067112,0.000168,2]
[402613477,1768723874729,-151.0,0.000168,2]
[402613478,1768723874739,-151.0,0.000168,2]
[402613479,1768723874749,-151.0,0.000168,2]
[402613480,1768723874758,-151.0,0.000168,2]
[402613481,1768723874767,-151.0,0.000168,2]
[402613482,1768723874777,-151.0,0.000168,2]
[402613483,1768723874786,-151.0,0.000168,2]
[402613484,1768723874796,-151.0,0.000168,2]
[402613485,1768723874805,-151.0,0.000168,2]
[402613486,1768723874815,-200.875141,0.000168,2]
[402613487,1768723874825,-2000.0,0.000168,6]
[402613488,1768723874835,-5888.0,0.00016803,2]
[402613489,1768723874846,-435.8,0.00016815,2]
[402613490,1768723874858,-150.0,0.00016818,2]
[402613491,1768723874868,-150.0,0.00016831,2]
[402613492,1768723874879,-150.0,0.00016853,2]
[402613493,1768723874889,-172.82,0.00016853,2]
[402613494,1768723874902,-187.91,0.00016856,2]
[402613495,1768723874915,-6119.214313,0.00016867,2]
[402613496,1768723874926,-500.0,0.00016868,2]
[402613497,1768723874936,-150.0,0.00016868,2]
[402613498,1768723874945,-300.0,0.00016868,2]
[402613499,1768723874955,-670.55457234,0.00016868,2]
[402613500,1768723874965,-300.0,0.00016868,2]
[402613501,1768723874975,-300.0,0.00016868,2]
[402613502,1768723874984,-106645.0782153,0.00016869,2]
[402613503,1768723874994,-2156.9575151,0.00016869,2]
[402613504,1768723875004,-341553.5573432,0.00016869,2]
[402613505,1768723875014,-151.0,0.00016869,2]
[402613506,1768723875025,-151.0,0.00016869,2]
[402613507,1768723875035,-151.0,0.00016869,2]
[402613508,1768723875045,-151.0,0.00016869,2]
[402613509,1768723875056,-151.0,0.00016869,2]
[402613510,1768723875066,-230.302472,0.00016869,2]
[402613511,1768723875077,-151.0,0.00016869,2]
[402613512,1768723875087,-118522.5886957,0.00016869,2]
[402613513,1768723875097,-166.189237,0.00016869,2]
[402613514,1768723875107,-151.0,0.00016869,2]
[402613515,1768723875117,-151.0,0.00016869,2]
[402613516,1768723875126,-151.0,0.00016869,2]
[402613517,1768723875136,-151.0,0.00016869,2]
[402613518,1768723875146,-151.0,0.00016869,2]
[402613519,1768723875157,-177.684227,0.00016869,2]
[402613520,1768723875167,-208.211138,0.00016869,2]
[402613521,1768723875176,-210.49871,0.00016869,2]
[402613522,1768723875186,-151.0,0.00016869,2]
[402613523,1768723875196,-151.0,0.00016869,2]
[402613524,1768723875205,-151.0,0.00016869,2]
[402613525,1768723875217,-151.0,0.00016869,2]
[402613526,1768723875227,-151.0,0.00016869,2]
[402613527,1768723875237,-151.0,0.00016869,2]
[402613528,1768723875247,-151.0,0.00016869,2]
[402613529,1768723875258,-151.0,0.00016869,2]
[402613530,1768723875268,-151.0,0.00016869,2]
[402613531,1768723875277,-171001.1999369,0.00016869,2]
[402613532,1768723876527,-450.991491,0.00016438,2]
[402613533,1768723876540,-168.744574,0.00016438,2]
[402613534,1768723876553,-151.0,0.00016438,2]
[402613535,1768723876567,-231.423193,0.00016438,2]
[402613536,1768723876578,-450.991491,0.00016438,2]
[402613537,1768723876592,-168.744574,0.00016438,2]
[402613538,1768723876604,-151.0,0.00016438,2]
[402613539,1768723876619,-231.423193,0.00016438,2]
[402613540,1768723876634,-450.991491,0.00016438,2]
[402613541,1768723876644,-168.744574,0.00016438,2]
[402613542,1768723876655,-231.423193,0.00016438,2]
[402613543,1768723876667,-151.0,0.00016438,2]
[402613544,1768723876679,-450.991491,0.00016438,2]
[402613545,1768723876694,-168.744574,0.00016438,2]
[402613546,1768723876707,-231.423193,0.00016438,2]
[402613547,1768723876720,-151.0,0.00016438,2]
[402613548,1768723876732,-60.71843728,0.00016438,2]
[402613549,1768723876835,-108.02613672,0.00016438,2]
[402613550,1768723876847,-233.01386328,0.00016438,2]
[402613551,1768723876864,-217.97762772,0.00016438,2]
[402613552,1768723876876,-156.11511876,0.00016438,2]
[402613553,1768723876890,-75.30807424,0.00016438,2]
[402613554,1768723876903,-151.0,0.00016438,2]
[402613555,1768723876915,-273.69192576,0.00016438,2]
[402613556,1768723877460,-177.29956524,0.00016438,2]
[402613557,1768723877472,-168.744574,0.00016438,2]
[402613558,1768723877485,-299.693082,0.00016438,2]
[402613559,1768723877497,-231.423193,0.00016438,2]
[402613560,1768723877508,-151.0,0.00016438,2]
[402613561,1768723877519,-168.744574,0.00016438,2]
[402613562,1768723877531,-450.991491,0.00016438,2]
[402613563,1768723877542,-299.693082,0.00016438,2]
[402613564,1768723877554,-168.744574,0.00016438,2]
[402613565,1768723877565,-450.991491,0.00016438,2]
[402613566,1768723877576,-231.423193,0.00016438,2]
[402613567,1768723877588,-299.693082,0.00016438,2]
[402613568,1768723877599,-168.744574,0.00016438,2]
[402613569,1768723877611,-231.423193,0.00016438,2]
[402613570,1768723877622,-450.991491,0.00016438,2]
[402613571,1768723877633,-299.693082,0.00016438,2]
[402613572,1768723877643,-168.744574,0.00016438,2]
[402613573,1768723877654,-450.991491,0.00016438,2]
[402613574,1768723877666,-231.423193,0.00016438,2]
[402613575,1768723877677,-299.693082,0.00016438,2]
[402613576,1768723877689,-168.744574,0.00016438,2]
[402613577,1768723877700,-450.991487,0.00016438,2]
[402613578,1768723877711,-231.423193,0.00016438,2]
[402613579,1768723877721,-299.693082,0.00016438,2]
[402613580,1768723877732,-168.744574,0.00016438,2]
[402613581,1768723877744,-231.423193,0.00016438,2]
[402613582,1768723877755,-299.693082,0.00016438,2]
[402613583,1768723877767,-168.744579,0.00016438,2]
[402613584,1768723877778,-231.423193,0.00016438,2]
[402613585,1768723877789,-299.693082,0.00016438,2]
[402613586,1768723877800,-231.423193,0.00016438,2]
[402613587,1768723877812,-299.693082,0.00016438,2]
[402613588,1768723877823,-231.423193,0.00016438,2]
[402613589,1768723877833,-18.61107103,0.00016438,2]
[402613590,1768723877847,-281.08201097,0.00016438,2]
[402613591,1768723877861,-299.693082,0.00016438,2]
[402613592,1768723877872,-231.423193,0.00016438,2]
[402613593,1768723877883,-299.693082,0.00016438,2]
[402613594,1768723877895,-231.423193,0.00016438,2]
[402613595,1768723877908,-262.72846154,0.00016438,2]
[402613596,1768723877921,-36.96462046,0.00016438,2]
[402613597,1768723877934,-231.423194,0.00016438,2]
[402613598,1768723877945,-299.693082,0.00016438,2]
[402613599,1768723877956,-35.91910354,0.00016869,2]
[402613600,1768723877969,-1963.25480074,0.00016869,2]
[402613601,1768723878091,-299.693082,0.00016438,2]
[402613602,1768723878102,-237.01409022,0.00016869,2]
[402613603,1768723878160,-581.45672485,0.00016869,2]
[402613604,1768723878173,-310.546,0.00016869,2]
[402614555,1768724130761,150.0,0.00018466,120]
[402615313,1768724269211,-2000.0,0.00043151,7]
[402615376,1768724311375,150.0,0.00025769,120]
[402615684,1768724808510,-166.66,0.0001428,2]
[402615685,1768724808532,-1000.0,0.0001435,2]
[402615686,1768724808554,-269.0,0.0001435,2]
[402615687,1768724808575,-899.54730402,0.00014364,2]
[402615766,1768725031514,-100.45269598,0.00014364,2]
[402615767,1768725031525,-166.66,0.00014581,2]
[402615768,1768725031536,-1600.0,0.00014747,2]
[402615769,1768725031547,-1255.61,0.00014838,2]
[402615770,1768725031557,-722.50069788,0.00014881,2]
[402615771,1768725031567,-166.66,0.00014881,2]
[402615772,1768725031576,-1778.32,0.0001504,2]
[402615773,1768725031586,-463.69,0.0001515,2]
[402615774,1768725031597,-500.0,0.00015174,2]
[402615775,1768725031606,-135.98784914,0.00015182,2]
[402615776,1768725031619,-30.67215086,0.00015182,2]
[402615777,1768725031630,-1200.0,0.00015299,2]
[402615778,1768725031640,-1517.64,0.000153,2]
[402615779,1768725031649,-166.66,0.00015482,2]
[402615780,1768725031659,-37.97536639,0.00015493,2]
[402615781,1768725031670,-497.76627144,0.00015493,2]
[402615782,1768725031693,-174.43836217,0.00015493,2]
[402615783,1768725031703,-300.0,0.00015572,2]
[402615784,1768725031712,-404.75299423,0.00015573,2]
[402615785,1768725031724,-2315.35846697,0.00015573,2]
[402615786,1768725031736,-4623.4484668,0.00015573,2]
[402615787,1768725031746,-6414.54341985,0.00015573,2]
[402615788,1768725031757,-1766.39692795,0.00015573,2]
[402615789,1768725031769,-5471.61034634,0.00015573,2]
[402615790,1768725031779,-164.15077601,0.00015573,2]
[402615791,1768725031788,-976.778,0.00015598,2]
[402615792,1768725031797,-300.0,0.00015598,2]
[402615794,1768725031807,-158.75195904,0.00015599,2]
[402615796,1768725031817,-73.30631715,0.00015599,2]
[402615799,1768725031829,-426.69368285,0.00015599,2]
[402615801,1768725031838,-500.0,0.00015599,2]
[402615803,1768725031848,-443.15231715,0.00015599,2]
[402615806,1768725031872,-56.84768285,0.00015599,2]
[402615808,1768725031882,-500.0,0.00015599,2]
[402615811,1768725031892,-128.05740397,0.00015599,2]
[402615813,1768725031903,-371.94259603,0.00015599,2]
[402615815,1768725031912,-500.0,0.00015599,2]
[402615817,1768725031922,-500.0,0.00015599,2]
[402615819,1768725031931,-500.0,0.00015599,2]
[402615821,1768725031941,-500.0,0.00015599,2]
[402615823,1768725031950,-291.69234079,0.00015599,2]
[402615825,1768725031961,-500.0,0.00015599,2]
[402615827,1768725031971,-500.0,0.00015599,2]
[402615829,1768725031980,-500.0,0.00015599,2]
[402615831,1768725031989,-500.0,0.00015599,2]
[402615833,1768725031998,-500.0,0.00015599,2]
[402615835,1768725032008,-500.0,0.00015599,2]
[402615837,1768725032018,-500.0,0.00015599,2]
[402615839,1768725032027,-500.0,0.00015599,2]
[402615841,1768725032036,-500.0,0.00015599,2]
[402615843,1768725032046,-500.0,0.00015599,2]
[402615845,1768725032055,-500.0,0.00015599,2]
[402615847,1768725032065,-500.0,0.00015599,2]
[402615849,1768725032074,-347.54311709,0.00015599,2]
[402615852,1768725032084,-750689.9868,0.000156,2]
[402615854,1768725032093,-200.0,0.00015647,2]
[402615856,1768725032102,-525.58193812,0.00015673,2]
[402615857,1768725032112,-500.62039903,0.00015673,2]
[402615859,1768725032120,-500.0,0.00015673,2]
[402615861,1768725032130,-500.0,0.00015673,2]
[402615864,1768725032139,-500.0,0.00015673,2]
[402615866,1768725032148,-500.0,0.00015673,2]
[402615868,1768725032158,-500.0,0.00015697,2]
[402615870,1768725032167,-500.0,0.00015697,2]
[402615872,1768725032177,-500.0,0.00015697,2]
[402615874,1768725032186,-250.0,0.00015773,2]
[402615875,1768725032195,-166.66,0.00015783,2]
[402615878,1768725032204,-387.56,0.00015817,2]
[402615879,1768725032214,-7343.55992792,0.00015832,2]
[402615881,1768725032224,-13336.13402891,0.00015832,2]
[402615884,1768725032235,-316.41666514,0.00015832,2]
[402615886,1768725032244,-285.12441334,0.0001589,2]
[402615888,1768725032253,-300.0,0.000159,5]
[402615890,1768725032263,-207.10004465,0.00015908,2]
[402615892,1768725032274,-500.0,0.00015918,2]
[402615894,1768725032283,-164.15077598,0.00015961,2]
[402615896,1768725032292,-34117.33173909,0.00016,4]
[402615898,1768725032301,-1629.07488531,0.00016009,2]
[402615900,1768725032311,-150.0,0.00016037,2]
[402615902,1768725032320,-150.0,0.00016037,2]
[402615904,1768725032330,-500.0,0.00016037,2]
[402615906,1768725032342,-160.85120225,0.00016037,2]
[402615908,1768725032352,-250.17696529,0.00016037,2]
[402615910,1768725032361,-154.31630696,0.00016082,2]
[402615912,1768725032375,-508.56369304,0.00016082,2]
[402615914,1768725032384,-483.79,0.00016082,2]
[402615916,1768725032393,-662.88,0.00016082,2]
[402615918,1768725032404,-483.79,0.00016082,2]
[402615920,1768725032413,-662.88,0.00016082,2]
[402615922,1768725032422,-483.79,0.00016082,2]
[402615924,1768725032431,-483.79,0.00016082,2]
[402615926,1768725032440,-7343.55992792,0.0001609,2]
[402615928,1768725032450,-13652.55069405,0.0001609,2]
[402615930,1768725032459,-153.00604463,0.00016092,2]
[402615932,1768725032469,-150.0,0.00016092,2]
[402615933,1768725032478,-500.0,0.00016092,2]
[402615935,1768725032487,-150.0,0.00016147,2]
[402615937,1768725032496,-501.86548223,0.00016147,2]
[402615939,1768725032505,-150.0,0.000162,2]
[402615940,1768725032514,-150.0,0.000162,2]
[402615942,1768725032523,-150.0,0.000162,2]
[402615943,1768725032533,-150.0,0.000162,2]
[402615944,1768725032542,-150.0,0.000162,2]
[402615945,1768725032551,-150.0,0.000162,2]
[402615946,1768725032560,-150.0,0.000162,2]
[402615947,1768725032569,-150.62813761,0.000162,2]
[402615948,1768725032578,-170.37649707,0.000162,2]
[402615949,1768725032588,-150.39481531,0.000162,2]
[402615950,1768725032597,-150.48546304,0.000162,2]
[402615951,1768725032606,-150.0,0.000162,2]
[402615952,1768725032615,-150.0,0.000162,2]
[402615953,1768725032625,-150.0,0.000162,2]
[402615954,1768725032634,-5000.00173544,0.000162,5]
[402615955,1768725032643,-150.0,0.00016201,2]